[Event "FIDE Womens Candidates 2024"]
[Site "Toronto"]
[Date "2024.04.21"]
[Round "14.2"]
[White "Lagno, Kateryna"]
[Black "Vaishali, Rameshbabu"]
[Result "0-1"]
[ECO "C78"]
[WhiteElo "2542"]
[BlackElo "2475"]
[Annotator "TA"]
[PlyCount "90"]
[EventDate "2024.04.02"]
[EventType "tourn"]
[EventCountry "CAN"]
[SourceTitle "playchess.com"]
[Source "ChessBase"]
[SourceQuality "1"]
[TimeControl "40/5400+30:1800+30"]

{[%evp 26,90,16,20,21,18,21,14,22,7,2,8,4,13,1,0,0,-39,-57,-58,-21,0,-10,-10,-15,-13,-8,-8,45,41,65,4,0,-79,-87,-95,0,-288,-281,-642,-244,-241,-242,-285,-265,-261,-243,-567,-582,-862,-622,-635,-638,-1230,-1226,-1191,-797,-1228,-1101,-1516,-1265,-1452,-1094,-1845,-1847,-1645,-1492]} 1. e4 {[%emt 0:00:02]} e5 {[%emt 0:00:11]} 2. Nf3 {[%emt 0:00:08]} Nc6 {[%emt 0:00:04]} 3. Bb5 {[%emt 0:00:07]} a6 {[%emt 0:00:04]} 4. Ba4 {[%emt 0:00:06]} Nf6 {[%emt 0:00:06]} 5. d3 {[%emt 0:00:16]} b5 {[%emt 0:00:18]} 6. Bb3 {[%emt 0:00:08]} Bc5 {[%emt 0:00:05]} 7. O-O {[%emt 0:00:55]} d6 {[%emt 0:00:19]} 8. a4 {[%emt 0:00:27]} Rb8 {[%emt 0:04:35]} 9. axb5 {[%emt 0:00:41]} axb5 {[%emt 0:00:06]} 10. c3 {[%emt 0:00:10]} O-O {[%emt 0:03:32]} 11. Bg5 {[%emt 0:00:15] C78: Ruy Lopez: Archangelsk and Möller Defences.} h6 {[%emt 0:07:19]} 12. Bh4 {[%emt 0:00:10]} g5 {[%emt 0:01:23]} 13. Nxg5 {[%emt 0:00:12]} hxg5 {[%emt 0:00:05]} 14. Bxg5 {[%emt 0:00:02]} Kg7 {[%emt 0:00:33]} 15. Qf3 $1 {[%emt 0:00:07]} Kg6 $146 {[%emt 0:03:12]} ({Predecessor:} 15... Rh8 16. Bd5 Bd7 17. b4 Bb6 18. Na3 Qe7 19. Nc2 Nxd5 20. Bxe7 Ndxe7 21. d4 Rh6 {0-1 Quesada Perez,Y (2601)-Bok,B (2607) Saint Louis Spring-A 2023 (6)}) 16. Bh4 $1 {[%emt 0:00:59]} Rg8 $1 {[%emt 0:33:23]} 17. h3 {[%emt 0:05:34]} Be6 {[%emt 0:15:55]} 18. Bd5 {[%emt 0:03:33]} Rh8 $1 {[%emt 0:02:06]} (18... Bxd5 19. Qf5+ Kh6 (19... Kg7 $2 20. exd5 Rh8 21. Bg5 $18) 20. exd5 $18 (20. Bxf6 $2 Be6 $19)) 19. Qg3+ {[%emt 0:06:55]} Kh7 {[%emt 0:00:55]} 20. Bg5 {[%emt 0:14:39]} Qg8 $1 {[%emt 0:08:42]} (20... Bxd5 $6 21. exd5 Qg8 (21... Nh5 $2 22. Qh4 $18) 22. dxc6 $16) 21. d4 {[%emt 0:34:01]} Nxd4 {[%emt 0:06:49]} ({Much weaker is} 21... Nxd5 $6 22. exd5 (22. dxc5 Nde7 $19) 22... Bxd5 23. dxc5 $16) 22. cxd4 {[%emt 0:00:09]} (22. Bxf6 $2 {is the wrong capture.} Ne2+ 23. Kh2 Nxg3 $19) 22... Bxd4 {[%emt 0:00:08]} 23. Bxe6 {[%emt 0:12:09]} fxe6 {[%emt 0:00:03]} 24. Nd2 {[%emt 0:01:08]} Qg6 {[%emt 0:06:18]} 25. Rfc1 {[%emt 0:05:35]} Rb7 {[%emt 0:02:20]} 26. Rc6 {[%emt 0:05:31]} Rf8 {[%emt 0:01:55]} ({Better is} 26... Bxb2 $11 27. Rb1 Bd4) 27. Qh4+ $14 {[%emt 0:00:14]} Kg8 {[%emt 0:01:49]} 28. Bh6 {[%emt 0:03:07]} ({White should try} 28. Ra3 $1 $14) 28... Bxf2+ $1 $11 {[%emt 0:00:57]} 29. Qxf2 {[%emt 0:00:40]} (29. Kxf2 $11 {keeps the balance.} Qxh6 (29... Ng4+ $2 30. Kg1 $18) 30. Qxh6 Ng4+ 31. Ke1 Nxh6 32. Nb3) 29... Qxh6 $17 {[%emt 0:00:07]} 30. Rf1 {[%emt 0:03:06]} Rf7 {[%emt 0:00:30]} (30... Nh5 $17 31. Nf3 Rf6) 31. Qg3+ $2 {[%emt 0:00:24][%mdl 8192]} (31. Rc3 $11) 31... Rg7 $19 {[%emt 0:00:26]} 32. Qf3 $2 {[%emt 0:02:15]} (32. Qf2 Qxh3 33. Rc3) 32... Nh5 $2 {[%emt 0:00:16]} (32... Qxd2 33. Rc3 Qf4 (33... Qxb2 $2 34. Rd3 $19) 34. Qxf4 exf4 35. Rxf4 Rg6) 33. Rf2 $19 {[%emt 0:01:05]} Nf4 {[%emt 0:00:40]} 34. Kh2 {[%emt 0:00:15]} Rb8 {[%emt 0:00:40]} 35. Nf1 {[%emt 0:00:26] [#]} Kh8 $1 {[%emt 0:01:12]} 36. Ne3 $2 {[%emt 0:00:13]} (36. Kh1 {is tougher.}) 36... Rbg8 $19 {[%emt 0:00:15]} 37. Rfc2 {[%emt 0:01:44]} Qh4 {[%emt 0:00:57]} 38. g4 {[%emt 0:01:08]} Rh7 {[%emt 0:00:19]} 39. R2c3 {[%emt 0:00:46]} Qxh3+ {[%emt 0:00:51]} 40. Qxh3 {[%emt 0:00:00]} Rxh3+ {[%emt 0:00:00]} 41. Kg1 {[%emt 0:00:08]} b4 {[%emt 0:12:22]} 42. Rb3 {[%emt 0:01:28]} d5 {[%emt 0:02:45]} 43. exd5 {[%emt 0:01:51]} exd5 {[%emt 0:02:29]} 44. Kf2 {[%emt 0:02:59]} Rf8 {[%emt 0:00:41]} 45. Rxc7 {[%emt 0:03:48]} d4 {[%emt 0:00:29]} 0-1

[Event "FIDE Womens Candidates 2024"]
[Site "Toronto"]
[Date "2024.04.21"]
[Round "14.4"]
[White "Goryachkina, Aleksandra"]
[Black "Salimova, Nurgyul"]
[Result "1/2-1/2"]
[ECO "C41"]
[WhiteElo "2553"]
[BlackElo "2432"]
[Annotator "TA"]
[PlyCount "118"]
[EventDate "2024.04.02"]
[EventType "tourn"]
[EventCountry "CAN"]
[SourceTitle "playchess.com"]
[Source "ChessBase"]
[SourceQuality "1"]
[TimeControl "40/5400+30:1800+30"]

{[%evp 25,118,-31,-41,-43,-24,-37,-19,-56,-4,-7,0,-8,31,43,28,50,51,45,83,76,114,63,80,100,90,16,27,31,26,39,52,37,36,25,29,0,0,0,0,0,0,0,0,0,0,0,0,0,0,0,0,0,0,0,0,0,0,0,0,0,0,0,0,0,-5,-5,-5,-5,-5,-11,-13,-12,-5,-13,-9,-12,-13,-20,0,0,0,0,0,0,0,0,0,0,0,0,0,0,0,0,0]} 1. e4 {[%emt 0:00:09]} d6 {[%emt 0:03:18]} 2. d4 {[%emt 0:00:43]} Nf6 {[%emt 0:00:07]} 3. Nc3 {[%emt 0:00:30]} e5 {[%emt 0:00:24]} 4. Nf3 {[%emt 0:00:55]} Nbd7 {[%emt 0:00:13]} 5. Bc4 {[%emt 0:00:46]} Be7 {[%emt 0:00:57]} 6. O-O {[%emt 0:00:38]} O-O {[%emt 0:00:16]} 7. a4 {[%emt 0:00:46]} a5 {[%emt 0:03:25]} 8. Re1 {[%emt 0:01:35]} c6 {[%emt 0:00:26]} 9. h3 {[%emt 0:02:16]} exd4 {[%emt 0:01:00]} 10. Nxd4 {[%emt 0:09:28]} Nc5 {[%emt 0:00:31]} 11. Nb3 {[%emt 0:05:26] C41: Philidor Defence.} Nfd7 {[%emt 0:10:21]} 12. Bf4 $146 {[%emt 0:06:22]} ({Predecessor:} 12. Nxc5 Nxc5 13. Be3 Be6 14. Qe2 Bxc4 15. Qxc4 b6 16. Rad1 Qc8 17. b3 Qe6 18. Qxe6 fxe6 {½-½ Cao,S (2488)-Tran,T (2306) Asia zt 3.3 Tagaytay City 2013 (5)}) 12... Ne5 {[%emt 0:08:27]} 13. Bf1 {[%emt 0:01:46]} Nxb3 {[%emt 0:00:17]} 14. cxb3 {[%emt 0:00:07]} Be6 {[%emt 0:00:38]} 15. Ne2 {[%emt 0:02:43]} Ng6 {[%emt 0:05:06]} 16. Bg3 {[%emt 0:03:47]} Bh4 {[%emt 0:04:27]} (16... Qb6 $1 $15) 17. Bxh4 $11 {[%emt 0:03:53]} Qxh4 {[%emt 0:02:01]} 18. Nd4 {[%emt 0:02:43]} Rae8 {[%emt 0:01:50]} 19. Nf5 {[%emt 0:10:07]} Qf6 {[%emt 0:06:35]} 20. Qxd6 {[%emt 0:03:20]} (20. Nxd6 Rd8 21. e5 Nxe5 $17) 20... Qxb2 {[%emt 0:04:06]} 21. Qc5 {[%emt 0:02:22]} Bc8 {[%emt 0:15:31]} 22. Qxa5 {[%emt 0:11:08]} Qxb3 {[%emt 0:03:45]} 23. Rab1 {[%emt 0:02:07]} (23. Nd6 $16 Re5 24. Qd2) 23... Qa3 {[%emt 0:07:03]} 24. Re3 {[%emt 0:07:41]} Qa2 {[%emt 0:00:10]} 25. Rbe1 {[%emt 0:02:54]} (25. Qb4 $16) 25... Re5 {[%emt 0:02:20]} 26. Qb4 {[%emt 0:02:43]} c5 {[%emt 0:06:42]} 27. Qb5 {[%emt 0:02:36]} Bxf5 {[%emt 0:01:26]} 28. exf5 {[%emt 0:05:13]} (28. R3e2 {simplifies} Bd7 29. Rxa2 Bxb5 30. axb5 Re7 31. f3) 28... Rxf5 {[%emt 0:00:20]} 29. R1e2 {[%emt 0:01:40]} Qa1 {[%emt 0:01:04]} 30. Re8 {[%emt 0:02:26]} h6 {[%emt 0:02:47]} 31. Qd7 {[%emt 0:01:32]} Rf6 {[%emt 0:03:28]} 32. Rxf8+ {[%emt 0:02:37]} Nxf8 {[%emt 0:00:05]} 33. Qc8 {[%emt 0:00:25]} Re6 {[%emt 0:04:01]} (33... Qxa4 $2 {too greedy.} 34. Re8 $18 (34. Qxc5 Rc6 $17) (34. Qxc5 Rc6 $17)) 34. Rxe6 {[%emt 0:00:42]} fxe6 {[%emt 0:00:05]} 35. Qxc5 {[%emt 0:01:10]} Qxa4 {[%emt 0:00:28]} 36. Qb6 {[%emt 0:00:40]} Qc6 {[%emt 0:00:18]} 37. Qd8 {[%emt 0:00:22]} Qd5 {[%emt 0:01:24]} 38. Qb8 {[%emt 0:00:32]} Kf7 {[%emt 0:01:06]} 39. Qf4+ {[%emt 0:00:32]} Ke7 {[%emt 0:01:42]} 40. Qg4 {[%emt 0:00:00]} Kf7 {[%emt 0:00:00]} 41. Qf4+ {[%emt 0:01:03]} Kg8 {[%emt 0:06:14]} 42. Qb8 {[%emt 0:00:31]} Qc6 {[%emt 0:01:02]} 43. h4 {[%emt 0:03:49]} b6 {[%emt 0:01:46]} 44. h5 {[%emt 0:01:32]} Qc5 {[%emt 0:00:13]} 45. Qe8 {[%emt 0:00:48]} Qf5 {[%emt 0:02:50]} 46. Be2 {[%emt 0:01:05]} Qe5 {[%emt 0:04:30]} 47. Bd3 {[%emt 0:02:07]} Qe1+ {[%emt 0:00:20]} 48. Bf1 {[%emt 0:00:40]} Qd1 {[%emt 0:00:18]} 49. g3 {[%emt 0:01:42]} Qd7 {[%emt 0:00:36]} 50. Qb8 {[%emt 0:00:34]} Qd4 {[%emt 0:00:32]} 51. Qe8 {[%emt 0:00:30]} Qd5 {[%emt 0:04:09]} 52. Bb5 {[%emt 0:02:22]} Qf5 {[%emt 0:01:33]} 53. Be2 {[%emt 0:02:38]} Qe4 {[%emt 0:01:05]} 54. Bb5 {[%emt 0:00:30]} Qf3 {[%emt 0:00:52]} 55. Bc4 {[%emt 0:00:47]} Qd1+ {[%emt 0:02:21]} 56. Kg2 {[%emt 0:01:15]} Qg4 {[%emt 0:03:52]} 57. Qc6 {[%emt 0:02:32]} Qxh5 {[%emt 0:01:51]} 58. Bxe6+ {[%emt 0:00:27]} Nxe6 {[%emt 0:02:19]} 59. Qxe6+ {[%emt 0:00:02]} Qf7 {[%emt 0:00:09]} 1/2-1/2